Workbook

Sheet Análise de Upgrade
A1: 0
B2: =IF($M$47="Português","Análise de Armas de Paladinos","Paladin's Weapons Upgrade Analysis") -> Paladin's Weapons Upgrade Analysis | S2: Database
S3: Weapons | AI3: Ammo | AP3: Imbuiement | AQ3: Strike | AS3: Precision | AT3: Epiphany | AY3: Experience
B4: Level: | C4: 270 | K4: Lionheart Society Library | S4: Name | T4: Level | U4: Attack | V4: Distance | W4: Protection | X4: Crit Dmg+ | Y4: Holy Magic | Z4: Hit% | AA4: Range | AB4: Imbuement | AC4: Price | AI4: Name | AJ4: Lvl | AK4: Attack | AP4: Name | AQ4: Hit% | AR4: Dmg% | AS4: Distance | AT4: Magic | AY4: Level | AZ4: Experience | BA4: EXP para Up
B5: =IF($M$47="Português","%Exp para upar:","%Exp to go:") -> %Exp to go: | C5: 1 | K5: By Lejonhjartat | S5: Mean Paladin Spear | T5: 0 | U5: 15 | V5: 0 | W5: None | X5: 0 | Y5: 0 | Z5: 0 | AA5: 3 | AB5: 0 | AI5: Nenhuma | AJ5: 0 | AK5: 0 | AP5: No | AQ5: 0 | AR5: 0 | AS5: 0 | AT5: 0 | AY5: 1 | AZ5: 0 | BA5: =AZ6-AZ5 -> 100
S6: Small Stone | T6: 0 | U6: 5 | V6: 0 | W6: None | X6: 0 | Y6: 0 | Z6: 0 | AA6: 4 | AB6: 0 | AI6: Arrow | AJ6: 0 | AK6: 25 | AP6: Basic | AQ6: 0.1 | AR6: 0.15 | AS6: 1 | AT6: 1 | AY6: 2 | AZ6: 100 | BA6: =AZ7-AZ6 -> 100
B7: =IF($M$47="Português","Magic Level Total:","Total Magic Level:") -> Total Magic Level: | C7: 30 | S7: Snowball | T7: 0 | U7: 0 | V7: 0 | W7: None | X7: 0 | Y7: 0 | Z7: 0 | AA7: ? | AB7: 0 | AI7: Burst Arrow | AJ7: 0 | AK7: 27 | AP7: Intricate | AQ7: 0.1 | AR7: 0.25 | AS7: 2 | AT7: 2 | AY7: 3 | AZ7: 200 | BA7: =AZ8-AZ7 -> 200
B8: =IF($M$47="Português","Magic Level na barra:","Base Magic Level:") -> Base Magic Level: | C8: 30 | S8: Spear | T8: 0 | U8: 25 | V8: 0 | W8: None | X8: 0 | Y8: 0 | Z8: 0 | AA8: 3 | AB8: 0 | AI8: Poison Arrow | AJ8: 0 | AK8: 23 | AP8: Powerfull | AQ8: 0.1 | AR8: 0.5 | AS8: 4 | AT8: 4 | AY8: 4 | AZ8: 400 | BA8: 400
B9: =IF($M$47="Português","%ML para upar:","%ML to go:") -> %ML to go: | C9: 1 | S9: Throwing Cake | T9: 0 | U9: 0 | V9: 0 | W9: None | X9: 0 | Y9: 0 | Z9: 0 | AA9: ? | AB9: 0 | AI9: Simple Arrow | AJ9: 0 | AK9: 20 | AY9: 5 | AZ9: 800 | BA9: 700
E10: =IF($M$47="Português","Nova Arma:","New Weapon Setup:") -> New Weapon Setup: | G10: =IF($M$47="Português","Alternativa 1:","Alternative 1:") -> Alternative 1: | I10: =IF($M$47="Português","Alternativa 2:","Alternative 2:") -> Alternative 2: | K10: =IF($M$47="Português","Alternativa 3:","Alternative 3:") -> Alternative 3: | M10: =IF($M$47="Português","Alternativa 4:","Alternative 4:") -> Alternative 4: | S10: Throwing Knife | T10: 0 | U10: 25 | V10: 0 | W10: None | X10: 0 | Y10: 0 | Z10: 0 | AA10: 4 | AB10: 0 | AI10: Bolt | AJ10: 0 | AK10: 30 | AY10: 6 | AZ10: 1500 | BA10: 1100
B11: =IF($M$47="Português","Distance Total:","Total Distance:") -> Total Distance: | C11: 125 | S11: Throwing Star | T11: 0 | U11: 30 | V11: 0 | W11: None | X11: 0 | Y11: 0 | Z11: 0 | AA11: 4 | AB11: 0 | AI11: Earth Arrow | AJ11: 20 | AK11: 28 | AP11: XP Boost | AQ11: TC | AY11: 7 | AZ11: 2600 | BA11: 1600
B12: =IF($M$47="Português","Distance na barra:","Base Distance:") -> Base Distance: | C12: 110 | E12: =IF($M$47="Português","Quanto o muda o dano numa rotação completa (Disparo, Mas San, Disparo, Runa)?","How much does the damage change in full rotation (Shoot, Divine Caldera, Shoot, Rune)?") -> How much does the damage change in full rotation (Shoot, Divine Caldera, Shoot, Rune)? | G12: =IF($M$47="Português","Quanto precisa subir o Distance para o mesmo aumento no dano?","How much increase in Distance for same Damage upgrade?") -> How much increase in Distance for same Damage upgrade? | I12: =IF($M$47="Português","Quanto precisa subir o Magic Level para o mesmo aumento no dano?","How much increase in Magic Level for same Damage upgrade?") -> How much increase in Magic Level for same Damage upgrade? | K12: =IF($M$47="Português","Quanto precisa subir o Level para o mesmo aumento no dano?","How much increase in Level for same Damage upgrade?") -> How much increase in Level for same Damage upgrade? | M12: =IF($M$47="Português","Simular vários aspectos para ver o quanto altera o Dano Final:","Simulate various aspects to see how much it changes the damage.") -> Simulate various aspects to see how much it changes the damage. | S12: Throwing Star of Sula | T12: 0 | U12: 250 | V12: 0 | W12: None | X12: 0 | Y12: 0 | Z12: 0 | AA12: ? | AB12: 0 | AI12: Flaming Arrow | AJ12: 20 | AK12: 28 | AP12: 1 | AQ12: 30 | AY12: 8 | AZ12: 4200 | BA12: 2200
B13: =IF($M$47="Português","%Distance para upar:","%Distance to go:") -> %Distance to go: | C13: 1 | S13: Viper Star | T13: 0 | U13: 28 | V13: 0 | W13: None | X13: 0 | Y13: 0 | Z13: 0 | AA13: 4 | AB13: 0 | AI13: Flash Arrow | AJ13: 20 | AK13: 28 | AP13: 2 | AQ13: 45 | AY13: 9 | AZ13: 6400 | BA13: 2900
S14: Crossbow | T14: 0 | U14: 0 | V14: 0 | W14: None | X14: 0 | Y14: 0 | Z14: 0 | AA14: 5 | AB14: 3 | AI14: Shiver Arrow | AJ14: 20 | AK14: 28 | AP14: 3 | AQ14: 90 | AY14: 10 | AZ14: 9300 | BA14: 3700
B15: =IF($M$47="Português","Preço das Tibia Coins:","Tibia Coins Price:") -> Tibia Coins Price: | C15: 39000 | S15: Bow | T15: 0 | U15: 0 | V15: 0 | W15: None | X15: 0 | Y15: 0 | Z15: 0 | AA15: 6 | AB15: 0 | AI15: Sniper Arrow | AJ15: 20 | AK15: 28 | AP15: 4 | AQ15: 180 | AY15: 11 | AZ15: 13000 | BA15: 4600
B16: =IF($M$47="Português","Loyalty da Conta:","Account Loyalty:") -> Account Loyalty: | C16: 0 | S16: Elvish Bow | T16: 0 | U16: 0 | V16: 0 | W16: None | X16: 0 | Y16: 0 | Z16: 0.05 | AA16: 6 | AB16: 3 | AI16: Tarsal Arrow | AJ16: 30 | AK16: 33 | AP16: 5 | AQ16: 360 | AY16: 12 | AZ16: 17600 | BA16: 5600
S17: Icicle Bow | T17: 0 | U17: 1 | V17: 0 | W17: None | X17: 0 | Y17: 0 | Z17: 0.04 | AA17: 6 | AB17: 3 | AI17: Piercing Bolt | AJ17: 30 | AK17: 33 | AY17: 13 | AZ17: 23200 | BA17: 6700
B18: =IF($M$47="Português","Arma:","Weapon:") -> Weapon: | C18: Living Vine Bow | E18: Bow of Cataclysm | G18: =IF($M$47="Português","Distance Total Requerido:","Total Distance Required:") -> Total Distance Required: | I18: =IF($M$47="Português","Magic Level Total Requerido:","Total Magic Level Required:") -> Total Magic Level Required: | K18: =IF($M$47="Português","Level Requerido:","Level Required:") -> Level Required: | M18: Level: | S18: Musician's Bow | T18: 0 | U18: 0 | V18: 0 | W18: None | X18: 0 | Y18: 0 | Z18: 0 | AA18: 4 | AB18: 3 | AI18: Onyx Arrow | AJ18: 40 | AK18: 38 | AY18: 14 | AZ18: 29900 | BA18: 7900
B19: =IF($M$47="Português","Munição","Ammo:") -> Ammo: | C19: Diamond Arrow | E19: Diamond Arrow | G19: 129.0651246 | I19: 32.03028042 | K19: 289.4069428 | M19: 220 | S19: Hunting Spear | T19: 20 | U19: 32 | V19: 0 | W19: None | X19: 0 | Y19: 0 | Z19: 0 | AA19: 3 | AB19: 0 | AI19: Vortex Bolt | AJ19: 40 | AK19: 36 | AP19: Adjust by | AY19: 15 | AZ19: 37800 | BA19: 9200
B20: Strike Imbuement: | C20: Powerfull | E20: Powerfull | M20: =IF($M$47="Português","Magic Level Total:","Total Magic Level:") -> Total Magic Level: | S20: Royal Spear | T20: 25 | U20: 35 | V20: 0 | W20: None | X20: 0 | Y20: 0 | Z20: 0 | AA20: 3 | AB20: 0 | AI20: Power Bolt | AJ20: 55 | AK20: 40 | AP20: None | AY20: 16 | AZ20: 47000 | BA20: 10600
B21: Precision Imbuement: | C21: No | E21: No | G21: =IF($M$47="Português","Aumento de:","Increase of:") -> Increase of: | I21: =IF($M$47="Português","Aumento de:","Increase of:") -> Increase of: | K21: =IF($M$47="Português","Aumento de:","Increase of:") -> Increase of: | M21: 30 | S21: Shimmer Bow | T21: 40 | U21: 1 | V21: 0 | W21: None | X21: 0 | Y21: 0 | Z21: 0.07 | AA21: 6 | AB21: 0 | AI21: Envenomed Arrow | AJ21: 70 | AK21: 54 | AP21: Level | AY21: 17 | AZ21: 57600 | BA21: 12100
B22: Epiphany Imbuement: | C22: No | E22: No | G22: =ROUND(G19-C11,0) -> 4 | I22: =ROUND(I19-C7,0) -> 2 | K22: =ROUND(K19-C4,0) -> 19 | M22: =IF($M$47="Português","Distance Total:","Total Distance:") -> Total Distance: | S22: Silkweaver Bow | T22: 40 | U22: 0 | V22: 0 | W22: None | X22: 0 | Y22: 0 | Z22: 0.03 | AA22: 6 | AB22: 3 | AI22: Drill Bolt | AJ22: 70 | AK22: 56 | AP22: Magic Level | AY22: 18 | AZ22: 69700 | BA22: 13700
M23: 125 | S23: Enchanted Spear | T23: 42 | U23: 38 | V23: 0 | W23: None | X23: 0 | Y23: 0 | Z23: 0 | AA23: 4 | AB23: 0 | AI23: Crystalline Arrow | AJ23: 90 | AK23: 65 | AP23: Distance | AY23: 19 | AZ23: 83400 | BA23: 15400
B24: Attack Final: | C24: =IFERROR(VLOOKUP(C19,$AI$5:$AK$35,3,FALSE)+VLOOKUP(C18,$S$5:$AD$69,3,FALSE),0) -> 42 | E24: =IFERROR(VLOOKUP(E19,$AI$5:$AK$35,3,FALSE)+VLOOKUP(E18,$S$5:$AD$69,3,FALSE),0) -> 43 | G24: =IF($M$47="Português","Treino com Modified Gnarlhounds:","Training with Modified Gnarlhounds:") -> Training with Modified Gnarlhounds: | S24: Modified Crossbow | T24: 45 | U24: 0 | V24: 0 | W24: None | X24: 0 | Y24: 0 | Z24: 0.01 | AA24: 5 | AB24: 3 | AI24: Prismatic Bolt | AJ24: 90 | AK24: 66 | AY24: 20 | AZ24: 98800 | BA24: 17200
B25: =IF($M$47="Português","Bônus de Ataque da Arma:","Weapon's Attack Bonus:") -> Weapon's Attack Bonus: | C25: =IFERROR(VLOOKUP(C$18,$S$4:$AD$69,3,FALSE),0) -> 5 | E25: =IFERROR(VLOOKUP(E$18,$S$4:$AD$69,3,FALSE),0) -> 6 | K25: =IF($M$47="Português","Minha Exp/hora média:","My Average Exp/hour:") -> My Average Exp/hour: | M25: Attack Final: | S25: Ornate Crossbow | T25: 50 | U25: 1 | V25: 0 | W25: None | X25: 0 | Y25: 0 | Z25: 0.02 | AA25: 6 | AB25: 0 | AI25: Infernal Bolt | AJ25: 110 | AK25: 72 | AY25: 21 | AZ25: 116000 | BA25: 19100
B26: =IF($M$47="Português","Bônus de Distance da Arma:","Weapon's Distance Bonus:") -> Weapon's Distance Bonus: | C26: =IFERROR(VLOOKUP(C$18,$S$4:$AD$69,4,FALSE)+VLOOKUP(C$21,$AP$5:$AT$8,4,FALSE),0) -> 1 | E26: =IFERROR(VLOOKUP(E$18,$S$4:$AD$69,4,FALSE)+VLOOKUP(E$21,$AP$5:$AT$8,4,FALSE),0) -> 2 | G26: =IF(G22=0,0,TRUNC(TRUNC((((ROUND(30*(((1.1^((C12+G22)-10))-1)/(1.1-1)),0))-((ROUND(30*(((1.1^(C12-10))-1)/(1.1-1)),0))+(ROUND(30*(1.1^(C12-10)),0))*(1-C13)))/(1+C16)/1.9475*2/60)/60,0)/24,0)) -> 22 | K26: 6000000 | M26: 42 | S26: Composite Hornbow | T26: 50 | U26: 3 | V26: 0 | W26: None | X26: 0 | Y26: 0 | Z26: 0.02 | AA26: 6 | AB26: 3 | AI26: Diamond Arrow | AJ26: 150 | AK26: 37 | AP26: Language | AY26: 22 | AZ26: 135100 | BA26: 21100
B27: Attack Value (A): | C27: =ROUNDDOWN($C$4/5+((($C$11+C26)+4)/28)*C24*6/5,0) -> 288 | E27: =ROUNDDOWN($C$4/5+((($C$11+E26)+4)/28)*E24*6/5,0) -> 295 | G27: =IF(G22=0,0,TRUNC((((ROUND(30*(((1.1^((C12+G22)-10))-1)/(1.1-1)),0))-((ROUND(30*(((1.1^(C12-10))-1)/(1.1-1)),0))+(ROUND(30*(1.1^(C12-10)),0))*(1-C13)))/(1+C16)/1.9475*2/60)/60,0)-G26*24) -> 19 | M27: Strike Imbuement: | S27: Glooth Spear | T27: 60 | U27: 55 | V27: 0 | W27: None | X27: 0 | Y27: 0 | Z27: 0 | AA27: 3 | AB27: 0 | AI27: Spectral Bolt | AJ27: 150 | AK27: 78 | AP27: English | AY27: 23 | AZ27: 156200 | BA27: 23200
G28: =IF(G22=0,0,ROUNDUP(60*((((ROUND(30*(((1.1^((C12+G22)-10))-1)/(1.1-1)),0))-((ROUND(30*(((1.1^(C12-10))-1)/(1.1-1)),0))+(ROUND(30*(1.1^(C12-10)),0))*(1-C13)))/(1+C16)/1.9475*2/60)/60-TRUNC((((ROUND(30*(((1.1^((C12+G22)-10))-1)/(1.1-1)),0))-((ROUND(30*(((1.1^(C12-10))-1)/(1.1-1)),0))+(ROUND(30*(1.1^(C12-10)),0))*(1-C13)))/(1+C16)/1.9475*2/60)/60,0)),0)) -> 20 | K28: =IF($M$47="Português","Quantas XP Boosta/dia?","How many XP Boosts/day?") -> How many XP Boosts/day? | M28: Powerfull | S28: Leaf Star | T28: 60 | U28: 48 | V28: 0 | W28: None | X28: 0 | Y28: 0 | Z28: 0 | AA28: 5 | AB28: 0 | AP28: Português | AY28: 24 | AZ28: 179400 | BA28: 25400
B29: =IF($M$47="Português","Bônus de ML da Arma:","Weapon's ML Bonus:") -> Weapon's ML Bonus: | C29: =IFERROR(VLOOKUP(C$18,$S$4:$AD$69,7,FALSE)+VLOOKUP(C$22,$AP$5:$AT$8,5,FALSE),0) -> 0 | E29: =IFERROR(VLOOKUP(E$18,$S$4:$AD$69,7,FALSE)+VLOOKUP(E$22,$AP$5:$AT$8,5,FALSE),0) -> 0 | G29: =IF(G22=0,0,(((ROUND(30*(((1.1^((C12+G22)-10))-1)/(1.1-1)),0))-((ROUND(30*(((1.1^(C12-10))-1)/(1.1-1)),0))+(ROUND(30*(1.1^(C12-10)),0))*(1-C13)))/(1+C16)/1.9475*2/60)/60*6550/1000000) -> 3.585027728 | K29: 2 | M29: Precision Imbuement: | S29: Chain Bolter | T29: 60 | U29: 4 | V29: 0 | W29: None | X29: 0 | Y29: 0 | Z29: 0 | AA29: 3 | AB29: 3 | AY29: 25 | AZ29: 204800 | BA29: 27700
B30: =IF($M$47="Português","Dano do Divine Caldera:","Divine Caldera Damage:") -> Divine Caldera Damage: | C30: =(($C$4/5+($C$7+C29)*6)+($C$4/5+($C$7+C29)*4))/2 -> 204 | E30: =(($C$4/5+($C$7+E29)*6)+($C$4/5+($C$7+E29)*4))/2 -> 204 | M30: No | S30: Yol's Bow | T30: 60 | U30: 0 | V30: 0 | W30: None | X30: 0 | Y30: 0 | Z30: 0.07 | AA30: 7 | AB30: 0 | AY30: 26 | AZ30: 232500 | BA30: 30100
B31: =IF($M$47="Português","Dano da Runa GFB/AVA:","GFB/AVA Rune Damage:") -> GFB/AVA Rune Damage: | C31: =(($C$4/5+($C$7)*2.8+17)+($C$4/5+($C$7)*1.2+7))/2 -> 126 | E31: =(($C$4/5+($C$7)*2.8+17)+($C$4/5+($C$7)*1.2+7))/2 -> 126 | G31: =IF($M$47="Português","Bows de Exercício (Dummy Privativo):","Training with Exercise Bows (Private Dummy):") -> Training with Exercise Bows (Private Dummy): | I31: =IF($M$47="Português","Rods de Exercício (Dummy Privativo):","Training with Exercise Rods (Private Dummy):") -> Training with Exercise Rods (Private Dummy): | K31: =IF($M$47="Português","XP Boosts necessárias:","XP Boosts Required:") -> XP Boosts Required: | M31: Epiphany Imbuement: | S31: Triple Bolt Crossbow | T31: 70 | U31: 3 | V31: 0 | W31: None | X31: 0 | Y31: 0 | Z31: 0.02 | AA31: 5 | AB31: 3 | AY31: 27 | AZ31: 262600 | BA31: 32600
B32: =IF($M$47="Português","Dano Mágico (B):","Magic Damage (B):") -> Magic Damage (B): | C32: =SUM(C30:C31) -> 330 | E32: =SUM(E30:E31) -> 330 | M32: No | S32: Elethriel's Elemental Bow | T32: 70 | U32: 7 | V32: 0 | W32: None | X32: 0 | Y32: 0 | Z32: 0 | AA32: 4 | AB32: 0 | AY32: 28 | AZ32: 295200 | BA32: 35200
G33: =(( ROUND(30*(((1.1^((ROUNDDOWN(LN((((ROUND(30*(((1.1^(C12+G22-10))-1)/(1.1-1)),0))+(ROUND(30*(1.1^(C12+G22-10)),0))*(0))/(1+C16)*(1.1-1)/30)+1)/LN(1.1),0)+10)-10))-1)/(1.1-1)),0)+(ROUND(30*(1.1^((ROUNDDOWN(LN((((ROUND(30*(((1.1^(C12+G22-10))-1)/(1.1-1)),0))+(ROUND(30*(1.1^(C12+G22-10)),0))*(0))/(1+C16)*(1.1-1)/30)+1)/LN(1.1),0)+10)-10)),0)*(1-(1-((((ROUND(30*(((1.1^(C12+G22-10))-1)/(1.1-1)),0))+(ROUND(30*(1.1^(C12+G22-10)),0))*(0))/(1+C16))-(ROUND(30*(((1.1^((ROUNDDOWN(LN((((ROUND(30*(((1.1^(C12+G22-10))-1)/(1.1-1)),0))+(ROUND(30*(1.1^(C12+G22-10)),0))*(0))/(1+C16)*(1.1-1)/30)+1)/LN(1.1),0)+10)-10))-1)/(1.1-1)),0)))/(ROUND(30*(1.1^((ROUNDDOWN(LN((((ROUND(30*(((1.1^(C12+G22-10))-1)/(1.1-1)),0))+(ROUND(30*(1.1^(C12+G22-10)),0))*(0))/(1+C16)*(1.1-1)/30)+1)/LN(1.1),0)+10)-10)),0))))) ) - ( (ROUND(30*(((1.1^((ROUNDDOWN(LN((((ROUND(30*(((1.1^(C12-10))-1)/(1.1-1)),0))+(ROUND(30*(1.1^(C12-10)),0))*(0))/(1+C16)*(1.1-1)/30)+1)/LN(1.1),0)+10)-10))-1)/(1.1-1)),0))+(ROUND(30*(1.1^((ROUNDDOWN(LN((((ROUND(30*(((1.1^(C12-10))-1)/(1.1-1)),0))+(ROUND(30*(1.1^(C12-10)),0))*(0))/(1+C16)*(1.1-1)/30)+1)/LN(1.1),0)+10)-10)),0)*(1-(1-((((ROUND(30*(((1.1^(C12-10))-1)/(1.1-1)),0))+(ROUND(30*(1.1^(C12-10)),0))*(1-C13))/(1+C16))-(ROUND(30*(((1.1^((ROUNDDOWN(LN((((ROUND(30*(((1.1^(C12-10))-1)/(1.1-1)),0))+(ROUND(30*(1.1^(C12-10)),0))*(0))/(1+C16)*(1.1-1)/30)+1)/LN(1.1),0)+10)-10))-1)/(1.1-1)),0)))/(ROUND(30*(1.1^((ROUNDDOWN(LN((((ROUND(30*(((1.1^(C12-10))-1)/(1.1-1)),0))+(ROUND(30*(1.1^(C12-10)),0))*(0))/(1+C16)*(1.1-1)/30)+1)/LN(1.1),0)+10)-10)),0))))) ))/4.68743842856572 -> 409322.4965 | I33: =((ROUND(1600*(((1.4^(((ROUNDDOWN(LN((((ROUND(1600*(((1.4^(C8+I22-0))-1)/(1.4-1)),0))+(ROUND(1600*(1.4^(C8+I22-0)),0))*(0))/(1+C16)*(1.4-1)/1600)+1)/LN(1.4),0)+0)-1)-0))-1)/(1.4-1)),0)) + (ROUND(1600*(1.4^((ROUNDDOWN(LN((((ROUND(1600*(((1.4^(C8+I22-0))-1)/(1.4-1)),0))+(ROUND(1600*(1.4^(C8+I22-0)),0))*(0))/(1+C16)*(1.4-1)/1600)+1)/LN(1.4),0)+0)-1)),0)*(1-(1-((((ROUND(1600*(((1.4^(C8+I22-0))-1)/(1.4-1)),0))+(ROUND(1600*(1.4^(C8+I22-0)),0))*(0))/(1+C16))-(ROUND(1600*(((1.4^((ROUNDDOWN(LN((((ROUND(1600*(((1.4^(C8+I22-0))-1)/(1.4-1)),0))+(ROUND(1600*(1.4^(C8+I22-0)),0))*(0))/(1+C16)*(1.4-1)/1600)+1)/LN(1.4),0)+0)-0))-1)/(1.4-1)),0)))/(ROUND(1600*(1.4^((ROUNDDOWN(LN((((ROUND(1600*(((1.4^(C8+I22-0))-1)/(1.4-1)),0))+(ROUND(1600*(1.4^(C8+I22-0)),0))*(0))/(1+C16)*(1.4-1)/1600)+1)/LN(1.4),0)+0)-0)),0))))) - (ROUND(1600*(((1.4^(((ROUNDDOWN(LN((((ROUND(1600*(((1.4^(C8-0))-1)/(1.4-1)),0))+(ROUND(1600*(1.4^(C8-0)),0))*(0))/(1+C16)*(1.4-1)/1600)+1)/LN(1.4),0)+0)-1)-0))-1)/(1.4-1)),0)) - (ROUND(1600*(1.4^((ROUNDDOWN(LN((((ROUND(1600*(((1.4^(C8-0))-1)/(1.4-1)),0))+(ROUND(1600*(1.4^(C8-0)),0))*(0))/(1+C16)*(1.4-1)/1600)+1)/LN(1.4),0)+0)-1)),0)*(1-(1-((((ROUND(1600*(((1.4^(C8-0))-1)/(1.4-1)),0))+(ROUND(1600*(1.4^(C8-0)),0))*(1-C9))/(1+C16))-(ROUND(1600*(((1.4^((ROUNDDOWN(LN((((ROUND(1600*(((1.4^(C8-0))-1)/(1.4-1)),0))+(ROUND(1600*(1.4^(C8-0)),0))*(0))/(1+C16)*(1.4-1)/1600)+1)/LN(1.4),0)+0)-0))-1)/(1.4-1)),0)))/(ROUND(1600*(1.4^((ROUNDDOWN(LN((((ROUND(1600*(((1.4^(C8-0))-1)/(1.4-1)),0))+(ROUND(1600*(1.4^(C8-0)),0))*(0))/(1+C16)*(1.4-1)/1600)+1)/LN(1.4),0)+0)-0)),0))))))/471.188756388416 -> 140880.0015 | K33: =IFERROR(IF(K22=0,0,IFERROR(SUM(OFFSET($BA$4,$C$4+1,0,(C4+K22)-$C$4-1)),0)+VLOOKUP($C$4,$AY$4:$BA$2004,3,FALSE)*$C$5),0) -> 73186100 | M33: =IF($M$47="Português","%Dano Crítico Adicional:","% Critical Addicional Damage:") -> % Critical Addicional Damage: | S33: Arbalest | T33: 75 | U33: 2 | V33: 0 | W33: None | X33: 0 | Y33: 0 | Z33: 0.02 | AA33: 6 | AB33: 0 | AY33: 29 | AZ33: 330400 | BA33: 37900
B34: =IF($M$47="Português","Dano da Rotação (2A + B):","Rotation Damage (2A + B):") -> Rotation Damage (2A + B): | C34: =C27*2+C32 -> 906 | E34: =E27*2+E32 -> 920 | G34: =G33*2/60/60 -> 227.401387 | I34: =I33*2/60/60 -> 78.26666751 | K34: =K33/(K26*50%) -> 24.39536667 | M34: 0 | S34: Crude Umbral Crossbow | T34: 75 | U34: 3 | V34: 0 | W34: None | X34: 0 | Y34: 0 | Z34: 0.01 | AA34: 5 | AB34: 0 | AY34: 30 | AZ34: 368300 | BA34: 40700
G35: =G34*945000/1000000 -> 214.8943107 | I35: =I34*945000/1000000 -> 73.9620008 | K35: =C15*K36/1000000 -> 35.67822375 | S35: Crude Umbral Bow | T35: 75 | U35: 2 | V35: 0 | W35: None | X35: 0 | Y35: 0 | Z35: 0.05 | AA35: 7 | AB35: 0 | AY35: 31 | AZ35: 409000 | BA35: 43600
B36: =IF($M$47="Português","%Chance de Crítico:","% Critical Chance:") -> % Critical Chance: | C36: =IFERROR(IF(VLOOKUP(C$18,$S$4:$AD$69,6,FALSE)<>0,10%,IF(C$20="No",0,10%)),0) -> 0.1 | E36: =IFERROR(IF(VLOOKUP(E$18,$S$4:$AD$69,6,FALSE)<>0,10%,IF(E$20="No",0,10%)),0) -> 0.1 | G36: =IFERROR(G35/$C$15*1000000,0) -> 5510.11053 | I36: =IFERROR(I35/$C$15*1000000,0) -> 1896.461559 | K36: =IFERROR(IF(K29=1,K34*30,IF(K29=2,(K34/2)*30+(K34/2)*45, IF(K29=3,(K34/3)*30+(K34/3)*45+(K34/3)*90, IF(K29=4,(K34/4)*30+(K34/4)*45+(K34/4)*90+(K34/4)*180, (K34/5)*30+(K34/5)*45+(K34/5)*90+(K34/5)*180)))),0) -> 914.82625 | M36: =IF($M$47="Português","Ajustar o Dano Final por:","Adjust Damage by:") -> Adjust Damage by: | S36: Assassin Star | T36: 80 | U36: 65 | V36: 0 | W36: None | X36: 0 | Y36: 0 | Z36: 0 | AA36: 4 | AB36: 0 | AY36: 32 | AZ36: 452600 | BA36: 46600
B37: =IF($M$47="Português","%Dano Extra Crítico:","% Critical Extra Damage:") -> % Critical Extra Damage: | C37: =IFERROR(VLOOKUP(C$18,$S$5:$AD$69,6,FALSE)+ VLOOKUP(C$20,$AP$5:$AR$8,3,FALSE),0) -> 0.5 | E37: =IFERROR(VLOOKUP(E$18,$S$5:$AD$69,6,FALSE)+ VLOOKUP(E$20,$AP$5:$AR$8,3,FALSE),0) -> 0.5 | G37: =ROUNDUP(G34/24,0) -> 10 | I37: =ROUNDUP(I34/24,0) -> 4 | K37: =ROUNDUP($K$33/(K29*(K26*50%)),0) -> 13 | M37: None | S37: The Ironworker | T37: 80 | U37: 4 | V37: 0 | W37: None | X37: 0 | Y37: 0 | Z37: 0 | AA37: 5 | AB37: 3 | AY37: 33 | AZ37: 499200 | BA37: 49700
B38: =IF($M$47="Português","Dano Crítico (C):","Critical Damage (C):") -> Critical Damage (C): | C38: =C34*(C36*C37) -> 45.3 | E38: =E34*(E36*E37) -> 46 | S38: Warsinger Bow | T38: 80 | U38: 3 | V38: 0 | W38: None | X38: 0 | Y38: 0 | Z38: 0.05 | AA38: 7 | AB38: 3 | AY38: 34 | AZ38: 548900 | BA38: 52900
G39: =IF($M$47="Português","Dano Final:","Final Damage:") -> Final Damage: | I39: =IF($M$47="Português","Dano Final:","Final Damage:") -> Final Damage: | K39: =IF($M$47="Português","Dano Final:","Final Damage:") -> Final Damage: | M39: =IF($M$47="Português","Dano Final:","Final Damage:") -> Final Damage: | S39: Hive Bow | T39: 85 | U39: 2 | V39: 0 | W39: None | X39: 0 | Y39: 0 | Z39: 0.05 | AA39: 6 | AB39: 3 | AY39: 35 | AZ39: 601800 | BA39: 56200
B40: =IF($M$47="Português","Dano Final (2A + B + C):","Final Damage (2A + B + C):") -> Final Damage (2A + B + C): | C40: =ROUND(C34*(1+C37*C36),0) -> 951 | E40: =ROUND(E34*(1+E37*E36),0) -> 966 | G40: =IFERROR(ROUND(((ROUNDDOWN($C$4/5+((($G$19+C26)+4)/28)*(VLOOKUP(C19,$AI$5:$AK$33,3,FALSE)+VLOOKUP(C18,$S$5:$AD$69,3,FALSE))*6/5,0))*2+C32)*(1+C37*C36),0),0) -> 966 | I40: =IFERROR(ROUND(((ROUNDDOWN($C$4/5+((($C$11+C26)+4)/28)*C24*6/5,0))*2+((($C$4/5+($I$19+C29)*6)+($C$4/5+($I$19+C29)*4))/2)+(((($C$4/5+($I$19+C29)*2.8+17)+($C$4/5+($I$19+C29)*1.2+7))/2)))*(1+C37*C36),0),0) -> 966 | K40: =IFERROR(ROUND(((ROUNDDOWN($K$19/5+((($C$11+C26)+4)/28)*C24*6/5,0))*2+(((($K$19/5+($C$7+C29)*6)+($K$19/5+($C$7+C29)*4))/2)+((($K$19/5+($C$7+C29)*2.8+17)+($K$19/5+($C$7+C29)*1.2+7))/2)))*(1+C37*C36),0),0) -> 966 | M40: =IFERROR(ROUND(((ROUNDDOWN($M$19/5+(((M23+VLOOKUP(M30,$AP$5:$AT$8,4,FALSE))+4)/28)*M26*6/5,0))*2+((($M$19/5+($M$21+VLOOKUP(M32,$AP$5:$AT$8,5,FALSE))*6)+($M$19/5+($M$21+VLOOKUP(M32,$AP$5:$AT$8,5,FALSE))*4))/2)+((($M$19/5+($M$21+VLOOKUP(M32,$AP$5:$AT$8,5,FALSE))*2.8+17)+($M$19/5+($M$21+VLOOKUP(M32,$AP$5:$AT$8,5,FALSE))*1.2+7))/2))*(1+(VLOOKUP(M$28,$AP$5:$AR$8,3,FALSE)+M34)*(IF(M$28="No",0,10%))),0),0) -> 905 | S40: Crystal Crossbow | T40: 90 | U40: 4 | V40: 0 | W40: None | X40: 0 | Y40: 0 | Z40: 0.03 | AA40: 6 | AB40: 0 | AY40: 36 | AZ40: 658000 | BA40: 59600
B41: =IF($M$47="Português","Alteração no Dano da Rotação:","Change in Rotation Damage:") -> Change in Rotation Damage: | E41: =E40/$C$40-1 -> 0.01577287066 | G41: =G40/$C$40-1 -> 0.01577287066 | I41: =I40/$C$40-1 -> 0.01577287066 | K41: =K40/$C$40-1 -> 0.01577287066 | M41: =M40/$C$40-1 -> -0.0483701367 | S41: The Devileye | T41: 100 | U41: 20 | V41: 0 | W41: None | X41: 0 | Y41: 0 | Z41: -0.2 | AA41: 6 | AB41: 3 | AY41: 37 | AZ41: 717600 | BA41: 63100
S42: Mycological Bow | T42: 105 | U42: 4 | V42: 0 | W42: None | X42: 0 | Y42: 0 | Z42: 0.04 | AA42: 6 | AB42: 3 | AY42: 38 | AZ42: 780700 | BA42: 66700
B43: =IF($M$47="Português","Outras Informações:","Other informations") -> Other informations | S43: Royal Star | T43: 120 | U43: 64 | V43: 0 | W43: None | X43: 0 | Y43: 0 | Z43: 0 | AA43: 5 | AB43: 0 | AY43: 39 | AZ43: 847400 | BA43: 70400
B44: Imbuements Slots: | C44: =VLOOKUP(C$18,$S$4:$AD$69,10,FALSE) -> 3 | E44: =VLOOKUP(E$18,$S$4:$AD$69,10,FALSE) -> 3 | H44: =IF(A1=1,IF($M$47="Português","Aperte o botão Calculate para atualizar os resultados.","Press Calculate button to refresh results:"),"Ok") -> Ok | L44: =IF(COUNTA(C4:C22,E18:E22,K26,K29,M19,M21,M23,M26,M28,M30,M32,M34,M37)<>31,"There still fields to fill.","Ok") -> Ok | M44: =IF($M$47="Português","Campos a Preencher:","Fields to fill.") -> Fields to fill. | S44: Rift Crossbow | T44: 120 | U44: 5 | V44: 0 | W44: None | X44: 0 | Y44: 0 | Z44: 0.04 | AA44: 5 | AB44: 3 | AC44: 69000 | AY44: 40 | AZ44: 917800 | BA44: 74200
B45: =IF($M$47="Português","%Bônus no Acerto:","Hit% Bonus:") -> Hit% Bonus: | C45: =VLOOKUP(C$18,$S$4:$AD$69,8,FALSE) -> 0.05 | E45: =VLOOKUP(E$18,$S$4:$AD$69,8,FALSE) -> 0.04 | S45: Umbral Crossbow | T45: 120 | U45: 6 | V45: 0 | W45: None | X45: 0 | Y45: 0 | Z45: 0.02 | AA45: 5 | AB45: 1 | AY45: 41 | AZ45: 992000 | BA45: 78100
B46: =IF($M$47="Português","Alcance:","Range:") -> Range: | C46: =VLOOKUP(C$18,$S$4:$AD$69,9,FALSE) -> 6 | E46: =VLOOKUP(E$18,$S$4:$AD$69,9,FALSE) -> 6 | M46: =IF($M$47="Português","Idioma:","Language:") -> Language: | S46: Rift Bow | T46: 120 | U46: 5 | V46: 0 | W46: None | X46: 0 | Y46: 0 | Z46: 0.03 | AA46: 7 | AB46: 3 | AC46: 68000 | AY46: 42 | AZ46: 1070100 | BA46: 82100
B47: =IF($M$47="Português","Proteção Elemental:","Elemental Protection:") -> Elemental Protection: | C47: =VLOOKUP(C$18,$S$4:$AD$69,5,FALSE) -> Earth +4% | E47: =VLOOKUP(E$18,$S$4:$AD$69,5,FALSE) -> Death +4% | M47: English | S47: Umbral Bow | T47: 120 | U47: 4 | V47: 0 | W47: None | X47: 0 | Y47: 0 | Z47: 0.05 | AA47: 7 | AB47: 1 | AY47: 43 | AZ47: 1152200 | BA47: 86200
B48: =IF($M$47="Português","Preço Médio:","Average Price:") -> Average Price: | C48: =VLOOKUP(C$18,$S$4:$AE$69,11,FALSE) -> 1606000 | E48: =VLOOKUP(E$18,$S$4:$AE$69,11,FALSE) -> 9300000 | S48: Royal Crossbow | T48: 130 | U48: 5 | V48: 0 | W48: None | X48: 0 | Y48: 0 | Z48: 0.03 | AA48: 6 | AB48: 3 | AY48: 44 | AZ48: 1238400 | BA48: 90400
S49: Thorn Spitter | T49: 150 | U49: 9 | V49: 0 | W49: None | X49: 0 | Y49: 0 | Z49: 0.01 | AA49: 6 | AB49: 3 | AY49: 45 | AZ49: 1328800 | BA49: 94700
B50: =IF($M$47="Português","O cálculo do treinamento com Armas de Exercício considera o uso do Dummy comprado na store e fora de eventos de double skill.","Calculation of training with Exercise Weapons considers the use of store-bought Dummy outside the double.") -> Calculation of training with Exercise Weapons considers the use of store-bought Dummy outside the double. | S50: Jungle Bow | T50: 150 | U50: 6 | V50: 1 | W50: Physical+3% | X50: 0 | Y50: 0 | Z50: 0.05 | AA50: 6 | AB50: 2 | AY50: 46 | AZ50: 1423500 | BA50: 99100
B51: =IF($M$47="Português","O custo de treino nos Modifieds Gnarlhounds é de 6.225 gp/hr, como calculaddo neste artigo.","The training cost calculation for Modifieds Gnarlhounds is 6,225 gp/hr as calculated in this article.") -> The training cost calculation for Modifieds Gnarlhounds is 6,225 gp/hr as calculated in this article. | S51: Crossbow of Destruction | T51: 200 | U51: 6 | V51: 0 | W51: None | X51: 0 | Y51: 0 | Z51: 0.05 | AA51: 5 | AB51: 3 | AC51: 1267000 | AY51: 47 | AZ51: 1522600 | BA51: 103600
B52: =IF($M$47="Português","A quantidade de XP Boosts considera que TODA a experiencia necessária para aumentar os levels vem das boosts.","The amount of XP Boosts considers that ALL the experience needed to increase levels comes entirely from these XP Boosts.") -> The amount of XP Boosts considers that ALL the experience needed to increase levels comes entirely from these XP Boosts. | S52: Bow of Destruction | T52: 200 | U52: 5 | V52: 0 | W52: None | X52: 0 | Y52: 0 | Z52: 0.05 | AA52: 6 | AB52: 3 | AC52: 823000 | AY52: 48 | AZ52: 1626200 | BA52: 108200
B53: =IF($M$47="Português","Esta planilha foi disponibilizada no artigo Guia de Armas para Paladinos [Parte 2/2] em GuildStats.eu.","This sheet was made available in the article Paladin's Weapons Guide [Part 2/2] at GuildStats.eu.") -> This sheet was made available in the article Paladin's Weapons Guide [Part 2/2] at GuildStats.eu. | S53: Cobra Crossbow | T53: 220 | U53: 7 | V53: 2 | W53: None | X53: 0 | Y53: 0 | Z53: 0.06 | AA53: 6 | AB53: 2 | AC53: 5885000 | AY53: 49 | AZ53: 1734400 | BA53: 112900
S54: Living Vine Bow | T54: 220 | U54: 5 | V54: 1 | W54: Earth +4% | X54: 0 | Y54: 0 | Z54: 0.05 | AA54: 6 | AB54: 3 | AC54: 1606000 | AY54: 50 | AZ54: 1847300 | BA54: 117700
S55: Umbral Master Crossbow | T55: 250 | U55: 9 | V55: 3 | W55: None | X55: 0 | Y55: 0 | Z55: 0.04 | AA55: 5 | AB55: 2 | AC55: 15700000 | AY55: 51 | AZ55: 1965000 | BA55: 122600
S56: Bow of Cataclysm | T56: 250 | U56: 6 | V56: 2 | W56: Death +4% | X56: 0 | Y56: 0 | Z56: 0.04 | AA56: 6 | AB56: 3 | AC56: 9300000 | AY56: 52 | AZ56: 2087600 | BA56: 127600
S57: Eldritch Bow | T57: 250 | U57: 6 | V57: 2 | W57: None | X57: 0 | Y57: 1 | Z57: 0.06 | AA57: 6 | AB57: 3 | AY57: 53 | AZ57: 2215200 | BA57: 132700
S58: Gilded Eldritch Bow | T58: 250 | U58: 6 | V58: 2 | W58: None | X58: 0 | Y58: 1 | Z58: 0.06 | AA58: 6 | AB58: 3 | AY58: 54 | AZ58: 2347900 | BA58: 137900
S59: Umbral Master Bow | T59: 250 | U59: 6 | V59: 3 | W59: None | X59: 0 | Y59: 0 | Z59: 0.05 | AA59: 7 | AB59: 2 | AY59: 55 | AZ59: 2485800 | BA59: 143200
S60: Lion Longbow | T60: 270 | U60: 6 | V60: 2 | W60: Ice +5% | X60: 0 | Y60: 0 | Z60: 0.06 | AA60: 6 | AB60: 3 | AC60: 6700000 | AY60: 56 | AZ60: 2629000 | BA60: 148600
S61: Falcon Bow | T61: 300 | U61: 7 | V61: 2 | W61: Fire +5% | X61: 0 | Y61: 0 | Z61: 0.05 | AA61: 6 | AB61: 3 | AC61: 61000000 | AY61: 57 | AZ61: 2777600 | BA61: 154100
S62: Soulpiercer | T62: 400 | U62: 9 | V62: 4 | W62: Death +7% | X62: 0.1 | Y62: 0 | Z62: 0.06 | AA62: 6 | AB62: 3 | AC62: 120000000 | AY62: 58 | AZ62: 2931700 | BA62: 159700
S63: Soulbleeder | T63: 400 | U63: 8 | V63: 4 | W63: Holy +7% | X63: 0.1 | Y63: 0 | Z63: 0.05 | AA63: 6 | AB63: 3 | AC63: 500000000 | AY63: 59 | AZ63: 3091400 | BA63: 165400
AY64: 60 | AZ64: 3256800 | BA64: 171200
AY65: 61 | AZ65: 3428000 | BA65: 177100
AY66: 62 | AZ66: 3605100 | BA66: 183100
AY67: 63 | AZ67: 3788200 | BA67: 189200
AY68: 64 | AZ68: 3977400 | BA68: 195400
AY69: 65 | AZ69: 4172800 | BA69: 201700
AY70: 66 | AZ70: 4374500 | BA70: 208100
AY71: 67 | AZ71: 4582600 | BA71: =AZ72-AZ71 -> 214600
AY72: 68 | AZ72: 4797200 | BA72: 221200
AY73: 69 | AZ73: 5018400 | BA73: 227900
AY74: 70 | AZ74: 5246300 | BA74: 234700
AY75: 71 | AZ75: 5481000 | BA75: 241600
AY76: 72 | AZ76: 5722600 | BA76: 248600
AY77: 73 | AZ77: 5971200 | BA77: 255700
AY78: 74 | AZ78: 6226900 | BA78: 262900
AY79: 75 | AZ79: 6489800 | BA79: 270200
AY80: 76 | AZ80: 6760000 | BA80: 277600
AY81: 77 | AZ81: 7037600 | BA81: 285100
AY82: 78 | AZ82: 7322700 | BA82: 292700
AY83: 79 | AZ83: 7615400 | BA83: 300400
AY84: 80 | AZ84: 7915800 | BA84: 308200
AY85: 81 | AZ85: 8224000 | BA85: 316100
AY86: 82 | AZ86: 8540100 | BA86: 324100
AY87: 83 | AZ87: 8864200 | BA87: 332200
AY88: 84 | AZ88: 9196400 | BA88: 340400
AY89: 85 | AZ89: 9536800 | BA89: 348700
AY90: 86 | AZ90: 9885500 | BA90: 357100
AY91: 87 | AZ91: 10242600 | BA91: 365600
AY92: 88 | AZ92: 10608200 | BA92: 374200
AY93: 89 | AZ93: 10982400 | BA93: 382900
AY94: 90 | AZ94: 11365300 | BA94: 391700
AY95: 91 | AZ95: 11757000 | BA95: 400600
AY96: 92 | AZ96: 12157600 | BA96: 409600
AY97: 93 | AZ97: 12567200 | BA97: 418700
AY98: 94 | AZ98: 12985900 | BA98: 427900
AY99: 95 | AZ99: 13413800 | BA99: 437200
AY100: 96 | AZ100: 13851000 | BA100: 446600
AY101: 97 | AZ101: 14297600 | BA101: 456100
AY102: 98 | AZ102: 14753700 | BA102: 465700
AY103: 99 | AZ103: 15219400 | BA103: 475400
AY104: 100 | AZ104: 15694800 | BA104: 485200
AY105: 101 | AZ105: 16180000 | BA105: 495100
AY106: 102 | AZ106: 16675100 | BA106: 505100
AY107: 103 | AZ107: 17180200 | BA107: 515200
AY108: 104 | AZ108: 17695400 | BA108: 525400
AY109: 105 | AZ109: 18220800 | BA109: 535700
AY110: 106 | AZ110: 18756500 | BA110: 546100
AY111: 107 | AZ111: 19302600 | BA111: 556600
AY112: 108 | AZ112: 19859200 | BA112: 567200
AY113: 109 | AZ113: 20426400 | BA113: 577900
AY114: 110 | AZ114: 21004300 | BA114: 588700
AY115: 111 | AZ115: 21593000 | BA115: 599600
AY116: 112 | AZ116: 22192600 | BA116: 610600
AY117: 113 | AZ117: 22803200 | BA117: 621700
AY118: 114 | AZ118: 23424900 | BA118: 632900
AY119: 115 | AZ119: 24057800 | BA119: 644200
AY120: 116 | AZ120: 24702000 | BA120: 655600
AY121: 117 | AZ121: 25357600 | BA121: 667100
AY122: 118 | AZ122: 26024700 | BA122: 678700
AY123: 119 | AZ123: 26703400 | BA123: 690400
AY124: 120 | AZ124: 27393800 | BA124: 702200
AY125: 121 | AZ125: 28096000 | BA125: 714100
AY126: 122 | AZ126: 28810100 | BA126: 726100
AY127: 123 | AZ127: 29536200 | BA127: 738200
AY128: 124 | AZ128: 30274400 | BA128: 750400
AY129: 125 | AZ129: 31024800 | BA129: 762700
AY130: 126 | AZ130: 31787500 | BA130: 775100
AY131: 127 | AZ131: 32562600 | BA131: 787600
AY132: 128 | AZ132: 33350200 | BA132: 800200
AY133: 129 | AZ133: 34150400 | BA133: 812900
AY134: 130 | AZ134: 34963300 | BA134: 825700
AY135: 131 | AZ135: 35789000 | BA135: =AZ136-AZ135 -> 838600
AY136: 132 | AZ136: 36627600 | BA136: 851600
AY137: 133 | AZ137: 37479200 | BA137: 864700
AY138: 134 | AZ138: 38343900 | BA138: 877900
AY139: 135 | AZ139: 39221800 | BA139: 891200
AY140: 136 | AZ140: 40113000 | BA140: 904600
AY141: 137 | AZ141: 41017600 | BA141: 918100
AY142: 138 | AZ142: 41935700 | BA142: 931700
AY143: 139 | AZ143: 42867400 | BA143: 945400
AY144: 140 | AZ144: 43812800 | BA144: 959200
AY145: 141 | AZ145: 44772000 | BA145: 973100
AY146: 142 | AZ146: 45745100 | BA146: 987100
AY147: 143 | AZ147: 46732200 | BA147: 1001200
AY148: 144 | AZ148: 47733400 | BA148: 1015400
AY149: 145 | AZ149: 48748800 | BA149: 1029700
AY150: 146 | AZ150: 49778500 | BA150: 1044100
AY151: 147 | AZ151: 50822600 | BA151: 1058600
AY152: 148 | AZ152: 51881200 | BA152: 1073200
AY153: 149 | AZ153: 52954400 | BA153: 1087900
AY154: 150 | AZ154: 54042300 | BA154: 1102700
AY155: 151 | AZ155: 55145000 | BA155: 1117600
AY156: 152 | AZ156: 56262600 | BA156: 1132600
AY157: 153 | AZ157: 57395200 | BA157: 1147700
AY158: 154 | AZ158: 58542900 | BA158: 1162900
AY159: 155 | AZ159: 59705800 | BA159: 1178200
AY160: 156 | AZ160: 60884000 | BA160: 1193600
AY161: 157 | AZ161: 62077600 | BA161: 1209100
AY162: 158 | AZ162: 63286700 | BA162: 1224700
AY163: 159 | AZ163: 64511400 | BA163: 1240400
AY164: 160 | AZ164: 65751800 | BA164: 1256200
AY165: 161 | AZ165: 67008000 | BA165: 1272100
AY166: 162 | AZ166: 68280100 | BA166: 1288100
AY167: 163 | AZ167: 69568200 | BA167: 1304200
AY168: 164 | AZ168: 70872400 | BA168: 1320400
AY169: 165 | AZ169: 72192800 | BA169: 1336700
AY170: 166 | AZ170: 73529500 | BA170: 1353100
AY171: 167 | AZ171: 74882600 | BA171: 1369600
AY172: 168 | AZ172: 76252200 | BA172: 1386200
AY173: 169 | AZ173: 77638400 | BA173: 1402900
AY174: 170 | AZ174: 79041300 | BA174: 1419700
AY175: 171 | AZ175: 80461000 | BA175: 1436600
AY176: 172 | AZ176: 81897600 | BA176: 1453600
AY177: 173 | AZ177: 83351200 | BA177: 1470700
AY178: 174 | AZ178: 84821900 | BA178: 1487900
AY179: 175 | AZ179: 86309800 | BA179: 1505200
AY180: 176 | AZ180: 87815000 | BA180: 1522600
AY181: 177 | AZ181: 89337600 | BA181: 1540100
AY182: 178 | AZ182: 90877700 | BA182: 1557700
AY183: 179 | AZ183: 92435400 | BA183: 1575400
AY184: 180 | AZ184: 94010800 | BA184: 1593200
AY185: 181 | AZ185: 95604000 | BA185: 1611100
AY186: 182 | AZ186: 97215100 | BA186: 1629100
AY187: 183 | AZ187: 98844200 | BA187: 1647200
AY188: 184 | AZ188: 100491400 | BA188: 1665400
AY189: 185 | AZ189: 102156800 | BA189: 1683700
AY190: 186 | AZ190: 103840500 | BA190: 1702100
AY191: 187 | AZ191: 105542600 | BA191: 1720600
AY192: 188 | AZ192: 107263200 | BA192: 1739200
AY193: 189 | AZ193: 109002400 | BA193: 1757900
AY194: 190 | AZ194: 110760300 | BA194: 1776700
AY195: 191 | AZ195: 112537000 | BA195: 1795600
AY196: 192 | AZ196: 114332600 | BA196: 1814600
AY197: 193 | AZ197: 116147200 | BA197: 1833700
AY198: 194 | AZ198: 117980900 | BA198: 1852900
AY199: 195 | AZ199: 119833800 | BA199: =AZ200-AZ199 -> 1872200
AY200: 196 | AZ200: 121706000 | BA200: 1891600
... 925 more rows
